{"text_format":"3","workbook":"xlsx","n_sheets":3,"sheets":["choix","BD","Liste"],"not_rendered":{"macros":1,"defined_names":13},"read":"whole","date_system":"1900"}

{"sheet":"choix","index":0,"n_rows":16,"n_cols":32,"rows_kept":16,"merged":[[4,22,4,31]]}
[]
[{"$nulls":9},{"$f":"SUBTOTAL(3,A11:A140)","v":6}]
[]
[]
[{"$nulls":22},"zone de Criteres"]
["Secteur ","Type d'essais","Type de Normes","Realisation ","Normes","Désignation","révision","banc","Localisation Banc","produit",{"$nulls":12},"Secteur ","Type d'essais","Type de Normes","Realisation ","Normes","Désignation","révision","banc","Localisation Banc","produit"]
["M",null,"Externe",{"$nulls":6},"Th",{"$nulls":12},{"$f":"IF(A7=\"\",\"\",A7)","v":"M"},"","Externe","","","",null,{"$f":"IF(H7=\"\",\"\",H7)","v":""},{"$f":"IF(I7=\"\",\"\",I7)","v":""},{"$f":"IF(J7=\"\",\"\",J7)","v":"Th"}]
[]
[]
["Secteur ","Type d'essais","Type de Normes","Realisation ","Normes","Désignation","révision","banc","Localisation Banc","produit"]
["M","Vi ","Externe","Interne",1,"Endurance produit",5,67,"VF","Th"]
["M","Ca","Externe","Externe","TREZA","Essais liquide",2019,432,"VF","Th"]
["M","Ca","Externe","Interne","ZDF54","monter et demonter ","éà&&",45,"VUS","Th"]
["M","Ca","Externe","Interne",1070,"US",2010,3169,"VF","Th"]
["M","Ca","Externe","Interne","TREZA","Essais liquide",2019,3118,"VF","Th"]
["M","Vi ","Externe","Interne","Audit","Endurance pilote ",2017,3299,"VF","Th"]

{"sheet":"BD","index":1,"n_rows":27,"n_cols":10,"rows_kept":27}
["Secteur ","Type d'essais","Type de Normes","Realisation ","Normes","Désignation","révision","banc","Localisation Banc","produit"]
["M","Vi ","Externe","Interne",1,"Endurance produit",5,67,"VF","Th"]
["M","Ca","Externe","Externe","TREZA","Essais liquide",2019,432,"VF","Th"]
["M","Ca","Externe","Interne","ZDF54","monter et demonter ","éà&&",45,"VUS","Th"]
["M","Vi ","Interne","Interne","RTY77-8","US",54,"ZE","VF","El"]
["M","Ca","Interne","Interne","RTY77-8","Tenue ",56,"TRRR","VF","El"]
["M","Ca","Interne","Interne","ZDF54","Test l'air",67,"TTY","VF","Th"]
["S","Ca","Externe","Interne",1016,"US",2015,830,"VF","Car"]
["M","Ca","Externe","Interne",1070,"US",2010,3169,"VF","Th"]
["S","Ca","Externe","Interne","DT077","Document Technique ","rev 2018",830,"VF","Car"]
["S","Ca","Externe","Externe","DT077-C1","d2.6.2 ","rev 2018",77,"Externe","Car"]
["S","Ca","Externe","Interne","DT077-C1","Document Technique","rev 2018",3169,"VF","Car"]
["S","Ca","Interne","Interne","NE003","Reversibilte","rev 2001","Montage 1","VUS","Car"]
["S","Ca","Externe","Interne","NHS DO8","analyse","rev 2005",736,"VF","Car"]
["S","Ca","Externe","Interne","QB2876","analyse","ZER",830,"UH","Car"]
["S","Ca","Externe","Interne","NHS DO8","National Health service","rev 205",3169,"VF","Car"]
["M","Ca","Externe","Interne","TREZA","Essais liquide",2019,3118,"VF","Th"]
["M","Vi ","Externe","Interne","Audit","Endurance pilote ",2017,3299,"VF","Th"]
["S","Ca","Externe","Interne","DT077-C1","Document Technique 077-04","rev 2018",830,"VF","Car"]
["C","Ca","Interne","Interne","NE0018-7","contrôle altitude","rev 2000",1111,"VF","El"]
["C","Ca","Interne","Interne","NE0018-7","contrôle altitude","rev 2000",1222,"VUS","El"]
["C","Ca","Interne","Interne","NE0018-7","contrôle altitude","rev 2000",1333,"VCH","El"]
["M","Ca","Externe","Interne","ITW","6,8 caractérisation statique","rev 1998",817,"VF","El"]
["M","Ca","Externe","Interne","ITW","6,9 caractérisation statique","rev 1998",818,"VF","El"]
["M","Vi ","Externe","Interne","ITW","6,7 Endurance dynamique ","rev 1998",3218,"VF","El"]
["S","Ca","Interne","Interne","NE0123","Essais 230V","rev 1998",3258,"VF","ZV"]
["S","Vi ","Interne","Interne","NE0435","endurance PV","rev 1998",2145,"VF","AET"]

{"sheet":"Liste","index":2,"n_rows":26,"n_cols":14,"rows_kept":26}
["Secteur ","Type d'essais","Type de Normes","Realisation ","Normes","Désignation","révision","banc","Localisation Banc","produit",null,null,"Noms"]
[{"$f":"SansDoublonsTrié(BD!A2:A10000)","v":"C"},{"$f":"SansDoublonsTrié(BD!B2:B10000)","v":"Ca"},{"$f":"SansDoublonsTrié(BD!C2:C10000)","v":"Externe"},{"$f":"SansDoublonsTrié(BD!D2:D10000)","v":"Externe"},{"$f":"SansDoublonsTrié(BD!E2:E10000)","v":1},{"$f":"SansDoublonsTrié(BD!F2:F10000)","v":"6,7 Endurance dynamique "},{"$f":"SansDoublonsTrié(BD!G2:G10000)","v":5},{"$f":"SansDoublonsTrié(BD!H2:H10000)","v":45},{"$f":"SansDoublonsTrié(BD!I2:I10000)","v":"Externe"},{"$f":"SansDoublonsTrié(BD!J2:J10000)","v":"AET"},null,null,"ListeBanc","=DECALER(Liste!$H$2;;;NB.SI(Liste!$H$2:$H$26;\"<>0\"))"]
["M","Vi ","Interne","Interne",1016,"6,8 caractérisation statique",54,67,"UH","Car",null,null,"ListeDesignation","=DECALER(Liste!$F$2;;;NB.SI(Liste!$F$2:$F$23;\"<>0\"))"]
["S",0,0,0,1070,"6,9 caractérisation statique",56,77,"VCH","El",null,null,"ListeLocalisationBanc","=DECALER(Liste!$I$2;;;NB.SI(Liste!$I$2:$I$11;\"<>0\"))"]
[0,0,0,0,"Audit","analyse",67,432,"VF","Th",null,null,"ListeNormes","=DECALER(Liste!$E$2;;;NB.SI(Liste!$E$2:$E$23;\"<>0\"))"]
[0,0,0,0,"DT077","contrôle altitude",2010,736,"VUS","ZV",null,null,"ListeProduit","=DECALER(Liste!$J$2;;;NB.SI(Liste!$J$2:$J$11;\"<>0\"))"]
[0,0,0,0,"DT077-C1","d2.6.2 ",2015,817,0,0,null,null,"ListeRealisation","=DECALER(Liste!$D$2;;;NB.SI(Liste!$D$2:$D$11;\"<>0\"))"]
[0,0,0,0,"ITW","Document Technique",2017,818,0,0,null,null,"ListeRévision","=DECALER(Liste!$G$2;;;NB.SI(Liste!$G$2:$G$23;\"<>0\"))"]
[0,0,0,0,"NE0018-7","Document Technique ",2019,830,0,0,null,null,"ListeSecteur","=DECALER(Liste!$A$2;;;NB.SI(Liste!$A$2:$A$11;\"<>0\"))"]
[0,0,0,0,"NE003","Document Technique 077-04","éà&&",1111,0,0,null,null,"ListeTypeEssai","=DECALER(Liste!$B$2;;;NB.SI(Liste!$B$2:$B$11;\"<>0\"))"]
[0,0,0,0,"NE0123","Endurance pilote ","rev 1998",1222,0,0,null,null,"ListeTypeNorme","=DECALER(Liste!$C$2;;;NB.SI(Liste!$C$2:$C$11;\"<>0\"))"]
[{"$nulls":4},"NE0435","Endurance produit","rev 2000",1333]
[{"$nulls":4},"NHS DO8","endurance PV","rev 2001",2145]
[{"$nulls":4},"QB2876","Essais 230V","rev 2005",3118]
[{"$nulls":4},"RTY77-8","Essais liquide","rev 2018",3169]
[{"$nulls":4},"TREZA","monter et demonter ","rev 205",3218]
[{"$nulls":4},"ZDF54","National Health service","ZER",3258]
[{"$nulls":4},0,"Reversibilte",0,3299]
[{"$nulls":4},0,"Tenue ",0,"Montage 1"]
[{"$nulls":4},0,"Test l'air",0,"TRRR"]
[{"$nulls":4},0,"US",0,"TTY"]
[{"$nulls":4},0,0,0,"ZE"]
[{"$nulls":4},0,0,0,0]
[{"$nulls":7},0]
[{"$nulls":7},0]
[{"$nulls":7},0]